{"text_format":"1","workbook":"xlsx","n_sheets":1,"sheets":["price bid 16"],"not_rendered":{"charts":0,"images":0,"macros":1,"external_links":1,"defined_names":0,"comments":0,"pivot_tables":0},"unopened":[],"bounds":{"document_bytes":16777216,"sheet_cells":100000,"rows_first":2000,"rows_last":500,"rows_between":2000,"halvings":0,"cell_chars":16384,"cell_head_chars":4096},"cells_cut":0,"cells_raw":0,"read":"whole","date_system":"1900"}

{"sheet":"price bid 16","index":0,"n_rows":35,"n_cols":10,"rows_kept":35,"cut":false,"hidden":false,"merged":[[0,0,0,9],[1,0,1,9],[2,0,2,9],[3,0,3,9],[4,0,4,9],[27,0,27,2],[27,3,27,9],[30,1,30,9],[31,1,31,9],[26,0,26,2]]}
["    BHARAT HEAVY ELECTRICAL LIMITED , JHANSI              "]
["FACTORY CIVIL DEPARTMENT"]
["Price bid "]
[{"$f":"[1]Measurement!A4","v":"Name of work - Annual contract for exterior painting and interior painting, whitewash, distempering, snowcem in factory area."}]
["Tender Enquiry No-FCX/TW/23/16"]
["S. \nNo.","DSR 2016  Reference ","DESCRIPTION OF ITEM","% Allocation (Item-wise)","Unit ","Total Qty","Analysed Rate as per DSR 2016","Amount (Rs)","Rate per Unit (in Rs.)","Amount (in Rs.)"]
["(A)",null,"(B)","(C)","(D)","( E )",null,null,"( F )","( G=E*F )"]
[1,"13.37.1/230","White washing with lime to give an even shade: New work (three or more coats) ",{"$f":"H8*0.5493/743309.85","v":2.5081386988212253E-3},"Sqm",200,16.97,{"$f":"G8*F8","v":3394},{"$f":"ROUND(J8/F8,4)","v":0},{"$f":"$J$27*D8","v":0}]
[2,"13.39.1/230","Colour washing such as green, blue or buff to give an even shade : New  work  (two  or  more  coats)  with  a  base  coat  of  white washing with lime",{"$f":"H9*0.5493/743309.85","v":6.3763181935501068E-2},"Sqm",3700,23.32,{"$f":"G9*F9","v":86284},{"$f":"ROUND(J9/F9,4)","v":0},{"$f":"$J$27*D9","v":0}]
[3,"13.41.1/230","Distempering with oil bound washable distemper of approved brand and manufacture to give an even shade  New  work  (two  or  more  coats)  over  and  including  priming coat with cement primer. ",5.0885138613459786E-2,"Sqm",750,91.81,68857.5,0,0]
[4,"13.44.1/230","Finishing walls with water proofing cement paint of required shade : New w ork (Two or more coats applied @ 3.84 kg/10 sqm).",6.2308106774045845E-3,"Sqm",150,56.21,8431.5,0,0]
[5,"13.47.1 /231","Finishing walls with Premium Acrylic Smooth exterior paint with Silicone additives of required shade: New work (Two or more coats applied @ 1.43 ltr/10 sqm over and including priming coat of exterior primer applied @ 2.20 kg/10 sqm)",7.921354540774618E-2,"Sqm",1197,89.55,107191.34999999999,0,0]
[6,"13.60.1/232","Wall  painting  with  plastic  emulsion  paint  of  approved  brand  and manufacture to give an even shade:  Two or more coats on new work .                                                                             ",3.0598324046156526E-2,"Sqm",516.59999999999991,80.150000000000006,41405.49,0,0]
[7,"13.62.1/233","Painting with synthetic enamel paint of approved brand and manufacture of requird colour to give an even shade two or more coats on new work over an under  coat of suitable shade with ordinary paint of approved brand and manufacture. ",1.9889968496986821E-2,"Sqm",250,107.66,26915,0,0]
[8,"13.63.1/233","Painting  with  aluminium  paint  of  approved  brand  and manufacture  to give an even shade . Two or more coats on new work. ",9.8330269671523928E-3,"Sqm",200,66.53,13306,0,0]
[9,"14.42.1/246","White washing with lime to give an even shade -Old  work (two or more coats)",7.5456990647978107E-3,"Sqm",1016,10.050000000000001,10210.800000000001,0,0]
[10,"14.42.2/246","White washing with lime to give an even shade  -Old  work (one or more coats)",5.5164271534946024E-3,"Sqm",1204,6.2,7464.8,0,0]
[11,"14.43/246","Removing white/colour wash by scraping and sand preparing and preparing the surface smooth including necessary repairs to scratches etc. complete.  ",4.357324182371591E-3,"Sqm",705.3,8.36,5896.3079999999991,0,0]
[12,"14.45.1/246","Distempering with oil bound washable distemper of approved brand and manufacture to give an even shade  old work ( one or more coats). ",0.11389435661588501,"Sqm",4732,32.57,154121.24,0,0]
[13,"14.53.1/247","Wall  painting  with  plastic  emulsion  paint  of  approved  brand  and manufacture to give an even shade:  one or more coats on old work .                                                                               ",2.916985998503854E-2,"Sqm",750,52.63,39472.5,{"$f":"ROUND(J20/F20,4)","v":0},0]
[14,"14.54.1/247","Painting with synthetic enamel paint of approved brand and manufacture of requird colour to give an even shade one  or more coats on old  work over. ",1.8200751124177891E-2,"Sqm",501,49.16,24629.16,0,0]
[15,"13.80 /234","Providing and applying white cement based putty of average thickness 1 mm, of approved brand and manufacturer, over the plastered wall surface to prepare the surface even and smooth complete. ",0.22209522360560671,"Sqm",3504,85.77,300538.07999999996,0,0]
[16,"14.46/246","Removing dry or oil bound distemper, water proofing cement paint and the like by scrapping, sand papering and preparing the surface smooth including necessary repairs to scratches etc. complete. ",4.7503585321787417E-2,"Sqm",5952,10.8,64281.600000000006,0,0]
[17,"14.64.1/248","Finishing walls with water proofing cement paint of required shade :Old work (one or more coats applied @ 2.20 kg/10 sqm) over priming coat of primer applied @ 0.80 litrs/10 sqm complete including cost of Priming coat.\n",5.2611497721979608E-2,"Sqm",1536,46.35,71193.600000000006,0,0]
[18,"14.67.1/248","Finishing walls with Premium Acrylic Smooth exterior paint with Silicone additives of required shade: Old work (Two or more coats applied @ 1.43 ltr/ 10 sqm) over existing cement paint surface .\n",0.21401301638071929,"Sqm",4416,65.58,289601.27999999997,0,0]
[19,"…………..","Other Items exept  above items but  as per CPWD DSR 2016   ",2.2169758681389734E-2,"item value Rs",30000,1,30000,0,0]
["TOTAL  \"A\"",null,null,{"$f":"SUM(D8:D26)","v":0.99999963468047681},null,null,"Rs.",{"$f":"SUM(H8:H26)","v":1353194.2079999999}]
["In words ",null,null,{"$f":"rup(J27)","v":0}]
[]
[null,"Note -GST extra as applicable"]
[null,"1. Bidder has to quote in above unlocked cell (J-27) only. Item rate shall be calculated automatically. Calculated item rates upto four  decimal points may be adjusted w.r.t. gross total amount and it shall be the itemwise final rate for  execution of contract and all other purposes."]
[null,"2. Quoted gross total amount should be considered only if quoted in this excel sheet and print out of this should only be considered for evaluation.  If Price is quoted in any other format other than the Excel Sheet enclosed to the NIT , the offer of the bidder  will be rejected"]
[]
[]
[null,null,null,null,"(Signature and Seal of  Contractor  )"]